[Event "Early-Titled-Tuesday-Blitz-February-20-2024"]
[Site "Chess.com"]
[Date "2024.02.20"]
[Round "1"]
[White "GKARU"]
[Black "KuzubovYuriy"]
[Result "0-1"]
[WhiteElo "2515"]
[BlackElo "2966"]
[TimeControl "180+1"]
[EndTime "8:09:52 PST"]
[Termination "KuzubovYuriy won on time"]

1. d4 {[%clk 0:03:00.9]} 1... Nf6 {[%clk 0:02:59.7]} 2. Nf3 {[%clk 0:03:01.5]}
2... e6 {[%clk 0:02:59.8]} 3. Bg5 {[%clk 0:03:01.3]} 3... h6 {[%clk 0:02:58.9]}
4. Bh4 {[%clk 0:02:59.8]} 4... c5 {[%clk 0:02:56.3]} 5. c3 {[%clk 0:02:59.3]}
5... Nc6 {[%clk 0:02:50]} 6. Nbd2 {[%clk 0:02:58.6]} 6... d5 {[%clk 0:02:48.5]}
7. e3 {[%clk 0:02:58.8]} 7... Qb6 {[%clk 0:02:40.3]} 8. Qb3 {[%clk 0:02:56.9]}
8... Qxb3 {[%clk 0:02:32.9]} 9. axb3 {[%clk 0:02:54.8]} 9... g5 {[%clk
0:02:29.7]} 10. Bg3 {[%clk 0:02:53.5]} 10... Nh5 {[%clk 0:02:30.4]} 11. Bd3
{[%clk 0:02:45]} 11... Nxg3 {[%clk 0:02:24.4]} 12. hxg3 {[%clk 0:02:45.9]} 12...
g4 {[%clk 0:02:23.9]} 13. Nh2 {[%clk 0:02:41.4]} 13... f5 {[%clk 0:02:09.4]} 14.
f3 {[%clk 0:02:34.4]} 14... Bd6 {[%clk 0:02:06.5]} 15. Kf2 {[%clk 0:02:34.1]}
15... h5 {[%clk 0:02:00.6]} 16. f4 {[%clk 0:02:20.5]} 16... Bd7 {[%clk
0:01:55.7]} 17. Nhf1 {[%clk 0:02:19.3]} 17... Ke7 {[%clk 0:01:53.1]} 18. dxc5
{[%clk 0:02:15.8]} 18... Bxc5 {[%clk 0:01:53.1]} 19. b4 {[%clk 0:02:16.7]} 19...
Bb6 {[%clk 0:01:45.6]} 20. Nb3 {[%clk 0:02:16.3]} 20... Nd8 {[%clk 0:01:43.6]}
21. Nfd2 {[%clk 0:02:12.1]} 21... Nf7 {[%clk 0:01:43.6]} 22. Nd4 {[%clk
0:02:12.1]} 22... Nd6 {[%clk 0:01:43.3]} 23. Rh4 {[%clk 0:01:56.2]} 23... Be8
{[%clk 0:01:41.3]} 24. Rhh1 {[%clk 0:01:52.5]} 24... Bf7 {[%clk 0:01:39.4]} 25.
N2b3 {[%clk 0:01:50.9]} 25... Rhc8 {[%clk 0:01:37]} 26. Na5 {[%clk 0:01:46.9]}
26... Rc7 {[%clk 0:01:36.6]} 27. Ra2 {[%clk 0:01:42.8]} 27... Be8 {[%clk
0:01:33.5]} 28. Rha1 {[%clk 0:01:41.7]} 28... Rac8 {[%clk 0:01:30.3]} 29. Nab3
{[%clk 0:01:34.8]} 29... a6 {[%clk 0:01:28.4]} 30. Na5 {[%clk 0:01:34]} 30...
Kf6 {[%clk 0:01:18.7]} 31. Nab3 {[%clk 0:01:31.4]} 31... Nc4 {[%clk 0:01:13.2]}
32. Bxc4 {[%clk 0:01:11.7]} 32... dxc4 {[%clk 0:01:01.4]} 33. Nc1 {[%clk
0:01:12.6]} 33... Bc6 {[%clk 0:00:46.2]} 34. Nce2 {[%clk 0:01:11.6]} 34... Be4
{[%clk 0:00:40.5]} 35. Rh1 {[%clk 0:01:11.4]} 35... Rh8 {[%clk 0:00:39]} 36.
Raa1 {[%clk 0:01:09.3]} 36... Bd5 {[%clk 0:00:37.8]} 37. Rh4 {[%clk 0:01:07]}
37... Kg6 {[%clk 0:00:35.8]} 38. Rhh1 {[%clk 0:01:04.5]} 38... Rcc8 {[%clk
0:00:35.5]} 39. Rh2 {[%clk 0:00:59.1]} 39... Ra8 {[%clk 0:00:35.2]} 40. Rhh1
{[%clk 0:00:57.8]} 40... Bc7 {[%clk 0:00:30.4]} 41. Ra3 {[%clk 0:00:51.3]} 41...
Bd6 {[%clk 0:00:28.2]} 42. Rha1 {[%clk 0:00:50.1]} 42... h4 {[%clk 0:00:23.9]}
43. gxh4 {[%clk 0:00:49.2]} 43... Rxh4 {[%clk 0:00:23.7]} 44. Kg3 {[%clk
0:00:48]} 44... Rah8 {[%clk 0:00:20]} 45. Ra5 {[%clk 0:00:47]} 45... Rh2 {[%clk
0:00:15.5]} 46. Rg1 {[%clk 0:00:47.2]} 46... Rh1 {[%clk 0:00:12.6]} 47. Raa1
{[%clk 0:00:45.6]} 47... R1h7 {[%clk 0:00:12.8]} 48. b5 {[%clk 0:00:42]} 48...
Be7 {[%clk 0:00:12.9]} 49. Kf2 {[%clk 0:00:40.7]} 49... Bh4+ {[%clk 0:00:13.1]}
50. Kf1 {[%clk 0:00:37.8]} 50... Ra8 {[%clk 0:00:11.8]} 51. Nc1 {[%clk 0:00:22]}
51... Bf6 {[%clk 0:00:11]} 52. Kf2 {[%clk 0:00:17.8]} 52... Rhh8 {[%clk
0:00:11.3]} 53. Nce2 {[%clk 0:00:16]} 53... axb5 {[%clk 0:00:10.5]} 54. Nxb5
{[%clk 0:00:15.3]} 54... Bh4+ {[%clk 0:00:10.7]} 55. g3 {[%clk 0:00:12.3]} 55...
Bf6 {[%clk 0:00:11.1]} 56. Rxa8 {[%clk 0:00:12.2]} 56... Rxa8 {[%clk 0:00:12]}
57. Rd1 {[%clk 0:00:08.1]} 57... Ra2 {[%clk 0:00:11.2]} 58. Rd2 {[%clk
0:00:07.9]} 58... Ra1 {[%clk 0:00:11.2]} 59. Ng1 {[%clk 0:00:05.7]} 59... Be7
{[%clk 0:00:10.7]} 60. Nd4 {[%clk 0:00:06]} 60... Bc5 {[%clk 0:00:10.5]} 61.
Nde2 {[%clk 0:00:06.1]} 61... Rb1 {[%clk 0:00:10.6]} 62. Nd4 {[%clk 0:00:06.2]}
62... Kf6 {[%clk 0:00:10.7]} 63. Nde2 {[%clk 0:00:06.3]} 63... Ke7 {[%clk
0:00:11.1]} 64. Nd4 {[%clk 0:00:06.2]} 64... Kd6 {[%clk 0:00:11.4]} 65. Nb5+
{[%clk 0:00:06.3]} 65... Kc6 {[%clk 0:00:11.7]} 66. Nd4+ {[%clk 0:00:07.2]}
66... Bxd4 {[%clk 0:00:11.8]} 67. exd4 {[%clk 0:00:07.1]} 67... Be4 {[%clk
0:00:12]} 68. Re2 {[%clk 0:00:06.5]} 68... Kb5 {[%clk 0:00:12.1]} 69. Rd2 {[%clk
0:00:05.9]} 69... Ka4 {[%clk 0:00:12.6]} 70. Ne2 {[%clk 0:00:06]} 70... Kb3
{[%clk 0:00:12.6]} 71. d5 {[%clk 0:00:06.9]} 71... Bxd5 {[%clk 0:00:12.5]} 72.
Nd4+ {[%clk 0:00:07]} 72... Ka4 {[%clk 0:00:13.1]} 73. Nxf5 {[%clk 0:00:06.4]}
73... exf5 {[%clk 0:00:13.4]} 74. Rxd5 {[%clk 0:00:06.7]} 74... Rxb2+ {[%clk
0:00:14.1]} 75. Ke3 {[%clk 0:00:07.5]} 75... Rg2 {[%clk 0:00:13.8]} 76. Rxf5
{[%clk 0:00:07.7]} 76... Rxg3+ {[%clk 0:00:14.3]} 77. Kd4 {[%clk 0:00:08.6]}
77... Rf3 {[%clk 0:00:14.3]} 78. Kxc4 {[%clk 0:00:06]} 78... g3 {[%clk
0:00:14.8]} 79. Kd4 {[%clk 0:00:05.1]} 79... g2 {[%clk 0:00:14.6]} 80. Rg5
{[%clk 0:00:06]} 80... Rxf4+ {[%clk 0:00:15.1]} 81. Ke3 {[%clk 0:00:05.5]} 81...
Rc4 {[%clk 0:00:15.3]} 82. Kd3 {[%clk 0:00:05.7]} 82... Kb3 {[%clk 0:00:15.4]}
83. Rb5+ {[%clk 0:00:04.8]} 83... Ka2 {[%clk 0:00:15.7]} 84. Rg5 {[%clk
0:00:05.1]} 84... Kb3 {[%clk 0:00:15.7]} 85. Rb5+ {[%clk 0:00:05.2]} 85... Ka3
{[%clk 0:00:15.8]} 86. Rg5 {[%clk 0:00:05.5]} 86... Rc6 {[%clk 0:00:13.7]} 87.
Rxg2 {[%clk 0:00:05.4]} 87... Kb3 {[%clk 0:00:14.1]} 88. Rg7 {[%clk 0:00:03.1]}
88... b6 {[%clk 0:00:14.2]} 89. Kd2 {[%clk 0:00:04]} 89... Rd6+ {[%clk 0:00:14]}
90. Kc1 {[%clk 0:00:03.6]} 90... Kxc3 {[%clk 0:00:14.2]} 91. Rg3+ {[%clk
0:00:04.3]} 91... Kb4 {[%clk 0:00:14.8]} 92. Rg4+ {[%clk 0:00:04.7]} 92... Ka3
{[%clk 0:00:14.8]} 93. Rg3+ {[%clk 0:00:04.5]} 93... Ka2 {[%clk 0:00:14.6]} 94.
Rc3 {[%clk 0:00:04.3]} 94... b5 {[%clk 0:00:14.5]} 95. Rc8 {[%clk 0:00:04.4]}
95... b4 {[%clk 0:00:14.1]} 96. Ra8+ {[%clk 0:00:03.5]} 96... Kb3 {[%clk
0:00:14.5]} 97. Rh8 {[%clk 0:00:03.5]} 97... Rg6 {[%clk 0:00:14.1]} 98. Rh3+
{[%clk 0:00:02.3]} 98... Ka2 {[%clk 0:00:14.6]} 99. Rh2+ {[%clk 0:00:02.9]}
99... Ka1 {[%clk 0:00:14.6]} 100. Rh1 {[%clk 0:00:02.1]} 100... b3 {[%clk
0:00:14.4]} 101. Kd2+ {[%clk 0:00:02.2]} 101... Kb2 {[%clk 0:00:14.7]} 0-1

[Event "Early-Titled-Tuesday-Blitz-February-20-2024"]
[Site "Chess.com"]
[Date "2024.02.20"]
[Round "1"]
[White "the_blue_pill"]
[Black "HamedWafa4"]
[Result "1/2-1/2"]
[WhiteElo "2401"]
[BlackElo "2715"]
[TimeControl "180+1"]
[EndTime "8:09:55 PST"]
[Termination "Game drawn by stalemate"]

1. b3 {[%clk 0:02:59.8]} 1... Nf6 {[%clk 0:02:56.5]} 2. Bb2 {[%clk 0:02:58.7]}
2... d5 {[%clk 0:02:56.2]} 3. e3 {[%clk 0:02:57.8]} 3... Bf5 {[%clk 0:02:55.5]}
4. Nf3 {[%clk 0:02:54.6]} 4... e6 {[%clk 0:02:55.1]} 5. Be2 {[%clk 0:02:51.6]}
5... Be7 {[%clk 0:02:54.7]} 6. Nh4 {[%clk 0:02:48.7]} 6... Bg6 {[%clk
0:02:53.9]} 7. Nxg6 {[%clk 0:02:48.2]} 7... hxg6 {[%clk 0:02:54.8]} 8. d3 {[%clk
0:02:44.5]} 8... c6 {[%clk 0:02:54.5]} 9. Nd2 {[%clk 0:02:44.7]} 9... Nbd7
{[%clk 0:02:55.4]} 10. Nf3 {[%clk 0:02:44.8]} 10... Bd6 {[%clk 0:02:55.3]} 11.
h3 {[%clk 0:02:43.3]} 11... Qe7 {[%clk 0:02:53.5]} 12. a3 {[%clk 0:02:37.1]}
12... e5 {[%clk 0:02:53.2]} 13. c4 {[%clk 0:02:36]} 13... O-O {[%clk 0:02:42]}
14. O-O {[%clk 0:02:32.6]} 14... Rac8 {[%clk 0:02:41.5]} 15. Qc2 {[%clk
0:02:31.7]} 15... a6 {[%clk 0:02:40.5]} 16. e4 {[%clk 0:02:12.1]} 16... dxe4
{[%clk 0:02:38]} 17. dxe4 {[%clk 0:02:11.3]} 17... Rfd8 {[%clk 0:02:35.7]} 18.
Rfd1 {[%clk 0:02:09.9]} 18... a5 {[%clk 0:02:33.7]} 19. g3 {[%clk 0:02:07.2]}
19... Nc5 {[%clk 0:02:27.9]} 20. Ng5 {[%clk 0:02:01.4]} 20... Nfd7 {[%clk
0:02:09.4]} 21. h4 {[%clk 0:02:00.2]} 21... f6 {[%clk 0:02:04.2]} 22. Nf3 {[%clk
0:02:00.2]} 22... Ne6 {[%clk 0:02:03.7]} 23. Bf1 {[%clk 0:01:59.7]} 23... c5
{[%clk 0:02:03]} 24. Bh3 {[%clk 0:01:59]} 24... Nd4 {[%clk 0:02:03.2]} 25. Bxd4
{[%clk 0:01:51.5]} 25... exd4 {[%clk 0:01:59.2]} 26. Bxd7 {[%clk 0:01:50.1]}
26... Qxd7 {[%clk 0:01:58.6]} 27. Kg2 {[%clk 0:01:48.1]} 27... Re8 {[%clk
0:01:57]} 28. Ne1 {[%clk 0:01:46.5]} 28... Qc6 {[%clk 0:01:56.7]} 29. f3 {[%clk
0:01:43.3]} 29... Re7 {[%clk 0:01:54.8]} 30. Nd3 {[%clk 0:01:42.5]} 30... Rce8
{[%clk 0:01:55.1]} 31. Re1 {[%clk 0:01:37.5]} 31... Qc7 {[%clk 0:01:55.4]} 32.
Qf2 {[%clk 0:01:32.4]} 32... b6 {[%clk 0:01:55.3]} 33. a4 {[%clk 0:01:29.3]}
33... Kf7 {[%clk 0:01:53.2]} 34. Ra2 {[%clk 0:01:27.8]} 34... Qc6 {[%clk
0:01:52.1]} 35. Rae2 {[%clk 0:01:28.3]} 35... Bc7 {[%clk 0:01:48.6]} 36. Kg1
{[%clk 0:01:20.4]} 36... Qd6 {[%clk 0:01:47.7]} 37. Kg2 {[%clk 0:01:18.7]} 37...
Qd7 {[%clk 0:01:47.8]} 38. f4 {[%clk 0:01:12.6]} 38... Qc6 {[%clk 0:01:45.1]}
39. Qf3 {[%clk 0:01:12.9]} 39... Rh8 {[%clk 0:01:34.3]} 40. e5 {[%clk
0:01:04.2]} 40... Qxf3+ {[%clk 0:01:33.7]} 41. Kxf3 {[%clk 0:01:04.9]} 41...
fxe5 {[%clk 0:01:30.9]} 42. Nxe5+ {[%clk 0:01:04.4]} 42... Bxe5 {[%clk 0:01:31]}
43. Rxe5 {[%clk 0:01:05.1]} 43... Rxe5 {[%clk 0:01:26.1]} 44. Rxe5 {[%clk
0:01:04.8]} 44... Rd8 {[%clk 0:01:26.4]} 45. Ke2 {[%clk 0:01:01.8]} 45... Kf6
{[%clk 0:01:23.9]} 46. Kd3 {[%clk 0:01:00.5]} 46... Rd6 {[%clk 0:01:22.7]} 47.
Re8 {[%clk 0:00:59.1]} 47... Kf5 {[%clk 0:01:22.6]} 48. Re5+ {[%clk 0:00:56.4]}
48... Kg4 {[%clk 0:01:21.2]} 49. Rg5+ {[%clk 0:00:56.9]} 49... Kf3 {[%clk
0:01:21.6]} 50. h5 {[%clk 0:00:56.2]} 50... gxh5 {[%clk 0:01:21.6]} 51. Rxg7
{[%clk 0:00:56.1]} 51... Re6 {[%clk 0:01:18.6]} 52. f5 {[%clk 0:00:53.7]} 52...
Re3+ {[%clk 0:01:17.8]} 53. Kd2 {[%clk 0:00:54.1]} 53... Kg2 {[%clk 0:00:54.2]}
54. f6 {[%clk 0:00:52.4]} 54... Rf3 {[%clk 0:00:54.7]} 55. f7 {[%clk 0:00:52.5]}
55... Rf6 {[%clk 0:00:51.3]} 56. g4 {[%clk 0:00:48]} 56... hxg4 {[%clk 0:00:47]}
57. Rxg4+ {[%clk 0:00:47.7]} 57... Kf3 {[%clk 0:00:46.9]} 58. Rg7 {[%clk
0:00:46.1]} 58... Ke4 {[%clk 0:00:47.3]} 59. Ke2 {[%clk 0:00:44.8]} 59... d3+
{[%clk 0:00:40.6]} 60. Kd2 {[%clk 0:00:40.3]} 60... Rf2+ {[%clk 0:00:38.5]} 61.
Ke1 {[%clk 0:00:40.4]} 61... Rf6 {[%clk 0:00:35.3]} 62. Kd2 {[%clk 0:00:39.5]}
62... Rf1 {[%clk 0:00:32.8]} 63. Rg4+ {[%clk 0:00:36.5]} 63... Ke5 {[%clk
0:00:33.2]} 64. Rg7 {[%clk 0:00:32.2]} 64... Kd4 {[%clk 0:00:30.3]} 65. Rg4+
{[%clk 0:00:31.5]} 65... Ke5 {[%clk 0:00:30.8]} 66. Rg7 {[%clk 0:00:32.1]} 66...
Rf3 {[%clk 0:00:29.3]} 67. Rh7 {[%clk 0:00:30.9]} 67... Ke6 {[%clk 0:00:28.2]}
68. Rh6+ {[%clk 0:00:28.2]} 68... Ke5 {[%clk 0:00:23.6]} 69. Rh7 {[%clk
0:00:24.4]} 69... Ke4 {[%clk 0:00:21.7]} 70. Rh4+ {[%clk 0:00:23.8]} 70... Ke5
{[%clk 0:00:22.3]} 71. Rh5+ {[%clk 0:00:20.7]} 71... Kd4 {[%clk 0:00:20.4]} 72.
Rh4+ {[%clk 0:00:20.3]} 72... Ke5 {[%clk 0:00:20.7]} 73. Rh5+ {[%clk 0:00:20.6]}
73... Ke6 {[%clk 0:00:21.2]} 74. Rh6+ {[%clk 0:00:21]} 74... Ke7 {[%clk
0:00:20.7]} 75. Rxb6 {[%clk 0:00:19.6]} 75... Kxf7 {[%clk 0:00:19.7]} 76. Rc6
{[%clk 0:00:19.9]} 76... Rf5 {[%clk 0:00:18.2]} 77. Kxd3 {[%clk 0:00:19.6]}
77... Ke7 {[%clk 0:00:18.8]} 78. Ra6 {[%clk 0:00:19.1]} 78... Rf3+ {[%clk
0:00:18.6]} 79. Kc2 {[%clk 0:00:19.6]} 79... Rf2+ {[%clk 0:00:19]} 80. Kc3
{[%clk 0:00:20.1]} 80... Rf3+ {[%clk 0:00:19.3]} 81. Kb2 {[%clk 0:00:20.5]}
81... Rf2+ {[%clk 0:00:20]} 82. Ka3 {[%clk 0:00:21]} 82... Kd7 {[%clk
0:00:20.6]} 83. Rxa5 {[%clk 0:00:21.4]} 83... Kc6 {[%clk 0:00:21.3]} 84. Ra6+
{[%clk 0:00:21.7]} 84... Kc7 {[%clk 0:00:21.7]} 85. a5 {[%clk 0:00:21]} 85...
Rf1 {[%clk 0:00:21.3]} 86. Ka4 {[%clk 0:00:21.3]} 86... Rb1 {[%clk 0:00:21.6]}
87. Rh6 {[%clk 0:00:20.2]} 87... Rb2 {[%clk 0:00:21.4]} 88. a6 {[%clk
0:00:19.8]} 88... Rb1 {[%clk 0:00:20.7]} 89. a7 {[%clk 0:00:19.6]} 89... Ra1+
{[%clk 0:00:21.1]} 90. Kb5 {[%clk 0:00:19.4]} 90... Kb7 {[%clk 0:00:21.8]} 91.
Rh7+ {[%clk 0:00:19.4]} 91... Ka8 {[%clk 0:00:22]} 92. Kxc5 {[%clk 0:00:19.9]}
92... Ra5+ {[%clk 0:00:21.8]} 93. Kb6 {[%clk 0:00:17.9]} 93... Rb5+ {[%clk
0:00:21.8]} 94. Kc6 {[%clk 0:00:13.5]} 94... Rc5+ {[%clk 0:00:22.1]} 95. Kd6
{[%clk 0:00:11.4]} 95... Rd5+ {[%clk 0:00:22.6]} 96. Ke6 {[%clk 0:00:11.5]}
96... Re5+ {[%clk 0:00:23.2]} 97. Kd6 {[%clk 0:00:12]} 97... Rd5+ {[%clk
0:00:23.7]} 98. Kc7 {[%clk 0:00:08.9]} 98... Rc5+ {[%clk 0:00:23]} 99. Kb6
{[%clk 0:00:08.4]} 99... Rb5+ {[%clk 0:00:22.3]} 100. Ka6 {[%clk 0:00:07.1]}
100... Ra5+ {[%clk 0:00:20.9]} 101. Kb6 {[%clk 0:00:07]} 101... Ra6+ {[%clk
0:00:21.1]} 102. Kc5 {[%clk 0:00:04.7]} 102... Ra5+ {[%clk 0:00:21.4]} 103. Kd4
{[%clk 0:00:03.2]} 103... Rd5+ {[%clk 0:00:21.6]} 104. Ke3 {[%clk 0:00:03.3]}
104... Rd3+ {[%clk 0:00:22]} 105. Kf2 {[%clk 0:00:03.4]} 105... Rd2+ {[%clk
0:00:22.3]} 106. Ke3 {[%clk 0:00:03.2]} 106... Re2+ {[%clk 0:00:22.1]} 107. Kd4
{[%clk 0:00:03.9]} 107... Re4+ {[%clk 0:00:22.5]} 108. Kc5 {[%clk 0:00:04.3]}
108... Rxc4+ {[%clk 0:00:22.7]} 109. Kxc4 {[%clk 0:00:05]} 1/2-1/2

[Event "Early-Titled-Tuesday-Blitz-February-20-2024"]
[Site "Chess.com"]
[Date "2024.02.20"]
[Round "1"]
[White "snowlord"]
[Black "tetrix83"]
[Result "1-0"]
[WhiteElo "2902"]
[BlackElo "2504"]
[TimeControl "180+1"]
[EndTime "8:10:02 PST"]
[Termination "snowlord won on time"]

1. d4 {[%clk 0:03:00.9]} 1... Nf6 {[%clk 0:02:44.5]} 2. c4 {[%clk 0:02:59.8]}
2... g6 {[%clk 0:02:44.6]} 3. h4 {[%clk 0:02:59.1]} 3... Bg7 {[%clk 0:02:45.5]}
4. Nc3 {[%clk 0:02:58.9]} 4... d6 {[%clk 0:02:42.3]} 5. e4 {[%clk 0:02:58.6]}
5... O-O {[%clk 0:02:34.7]} 6. Be2 {[%clk 0:02:57.1]} 6... c5 {[%clk 0:02:33.9]}
7. d5 {[%clk 0:02:56.3]} 7... e6 {[%clk 0:02:34.3]} 8. h5 {[%clk 0:02:56.7]}
8... exd5 {[%clk 0:02:34.3]} 9. h6 {[%clk 0:02:54.8]} 9... Bh8 {[%clk
0:02:34.2]} 10. exd5 {[%clk 0:02:55.5]} 10... Re8 {[%clk 0:02:33.4]} 11. Bg5
{[%clk 0:02:55.5]} 11... Qb6 {[%clk 0:02:32.5]} 12. Qd2 {[%clk 0:02:39.5]} 12...
Ne4 {[%clk 0:02:24.6]} 13. Nxe4 {[%clk 0:02:37.7]} 13... Rxe4 {[%clk 0:02:25.5]}
14. Kf1 {[%clk 0:01:57.3]} 14... Qxb2 {[%clk 0:02:19.8]} 15. Qxb2 {[%clk
0:01:57.6]} 15... Bxb2 {[%clk 0:02:20.1]} 16. Rb1 {[%clk 0:01:58.4]} 16... Bh8
{[%clk 0:02:14.3]} 17. Bd3 {[%clk 0:01:47.6]} 17... Re8 {[%clk 0:01:51.3]} 18.
Bf4 {[%clk 0:01:36.3]} 18... Be5 {[%clk 0:01:48.1]} 19. Re1 {[%clk 0:01:31.6]}
19... Bd7 {[%clk 0:01:45.2]} 20. Bxe5 {[%clk 0:01:01.3]} 20... Rxe5 {[%clk
0:01:45.7]} 21. Nf3 {[%clk 0:00:52.3]} 21... Rxe1+ {[%clk 0:01:43.1]} 22. Kxe1
{[%clk 0:00:53.2]} 22... Na6 {[%clk 0:01:41.8]} 23. Kd2 {[%clk 0:00:53.8]} 23...
Re8 {[%clk 0:01:38.6]} 24. Ng5 {[%clk 0:00:50.6]} 24... f5 {[%clk 0:01:19.4]}
25. a3 {[%clk 0:00:48.2]} 25... Nc7 {[%clk 0:01:19]} 26. Rb1 {[%clk 0:00:48.3]}
26... b6 {[%clk 0:01:18.3]} 27. Bc2 {[%clk 0:00:45.3]} 27... Re7 {[%clk
0:01:18.1]} 28. Bd3 {[%clk 0:00:32.8]} 28... Ba4 {[%clk 0:01:13.8]} 29. g3
{[%clk 0:00:29.8]} 29... Ne8 {[%clk 0:01:13.8]} 30. f3 {[%clk 0:00:23.6]} 30...
Nf6 {[%clk 0:01:13.8]} 31. Rg1 {[%clk 0:00:20.6]} 31... Bd7 {[%clk 0:01:12.7]}
32. Rg2 {[%clk 0:00:17]} 32... Kf8 {[%clk 0:01:10.9]} 33. Rg1 {[%clk 0:00:17.6]}
33... Ng8 {[%clk 0:01:07.7]} 34. Rh1 {[%clk 0:00:17.4]} 34... Nf6 {[%clk
0:01:04.2]} 35. Rg1 {[%clk 0:00:18]} 35... Nh5 {[%clk 0:01:02.2]} 36. Rg2 {[%clk
0:00:15.7]} 36... Ke8 {[%clk 0:00:54.7]} 37. Rg1 {[%clk 0:00:08.7]} 37... Nf6
{[%clk 0:00:53.7]} 38. Rh1 {[%clk 0:00:08.4]} 38... Bc8 {[%clk 0:00:48.8]} 39.
Rg1 {[%clk 0:00:07.8]} 39... Kd8 {[%clk 0:00:49]} 40. a4 {[%clk 0:00:07.7]}
40... Bd7 {[%clk 0:00:46.2]} 41. Bc2 {[%clk 0:00:08.3]} 41... Kc7 {[%clk
0:00:43.1]} 42. Ra1 {[%clk 0:00:07.9]} 42... Ng8 {[%clk 0:00:42.5]} 43. Rh1
{[%clk 0:00:08]} 43... Nf6 {[%clk 0:00:41.7]} 44. Ra1 {[%clk 0:00:08]} 44... Kb7
{[%clk 0:00:41]} 45. Bd3 {[%clk 0:00:06.2]} 45... Ka6 {[%clk 0:00:40.4]} 46. a5
{[%clk 0:00:05.2]} 46... bxa5 {[%clk 0:00:38.9]} 47. Bc2 {[%clk 0:00:05.6]}
47... Nh5 {[%clk 0:00:38.1]} 48. Rg1 {[%clk 0:00:05.3]} 48... a4 {[%clk
0:00:38.1]} 49. Ra1 {[%clk 0:00:03.4]} 49... Nxg3 {[%clk 0:00:36.7]} 50. Bxa4
{[%clk 0:00:03]} 50... Bxa4 {[%clk 0:00:37]} 51. Rxa4+ {[%clk 0:00:03.7]} 51...
Kb7 {[%clk 0:00:37.5]} 52. Ne6 {[%clk 0:00:02.6]} 52... f4 {[%clk 0:00:30.8]}
53. Ra1 {[%clk 0:00:03.2]} 53... Nf5 {[%clk 0:00:30.8]} 54. Nxf4 {[%clk
0:00:03.3]} 54... Nxh6 {[%clk 0:00:30.5]} 55. Ne6 {[%clk 0:00:03.4]} 55... Nf5
{[%clk 0:00:30]} 56. Rb1+ {[%clk 0:00:04.3]} 56... Kc8 {[%clk 0:00:29.2]} 57.
Kd3 {[%clk 0:00:05.2]} 57... Nd4 {[%clk 0:00:26.6]} 58. Ra1 {[%clk 0:00:05.9]}
58... Nxe6 {[%clk 0:00:26.4]} 59. dxe6 {[%clk 0:00:06.8]} 59... Rxe6 {[%clk
0:00:20.8]} 60. Rxa7 {[%clk 0:00:05.7]} 60... h5 {[%clk 0:00:21]} 61. Rg7 {[%clk
0:00:04.7]} 61... Rf6 {[%clk 0:00:20.4]} 62. Ke4 {[%clk 0:00:04.9]} 62... Kd8
{[%clk 0:00:20]} 63. Rh7 {[%clk 0:00:04.3]} 63... Ke8 {[%clk 0:00:20.4]} 64. Rc7
{[%clk 0:00:04.5]} 64... Kf8 {[%clk 0:00:20.7]} 65. Rb7 {[%clk 0:00:05]} 65...
Kg8 {[%clk 0:00:19.6]} 66. f4 {[%clk 0:00:05.6]} 66... h4 {[%clk 0:00:19.4]} 67.
Rb2 {[%clk 0:00:05.8]} 67... Rf5 {[%clk 0:00:18.7]} 68. Rh2 {[%clk 0:00:05.6]}
68... Rh5 {[%clk 0:00:18.9]} 69. Rh3 {[%clk 0:00:06.3]} 69... Kf7 {[%clk
0:00:18.7]} 70. Kf3 {[%clk 0:00:06.3]} 70... Kf6 {[%clk 0:00:18.5]} 71. Kg4
{[%clk 0:00:07.1]} 71... Rh7 {[%clk 0:00:17.6]} 72. Rd3 {[%clk 0:00:06.9]} 72...
Ke6 {[%clk 0:00:17.4]} 73. Re3+ {[%clk 0:00:07.6]} 73... Kd7 {[%clk 0:00:17.2]}
74. Ra3 {[%clk 0:00:08.3]} 74... Kc6 {[%clk 0:00:16.9]} 75. Ra6+ {[%clk
0:00:08.5]} 75... Kb7 {[%clk 0:00:16.4]} 76. Rxd6 {[%clk 0:00:08.9]} 76... h3
{[%clk 0:00:17]} 77. Rd1 {[%clk 0:00:06.6]} 77... h2 {[%clk 0:00:17.2]} 78. Rh1
{[%clk 0:00:07.2]} 78... Ka6 {[%clk 0:00:17.1]} 79. Kg5 {[%clk 0:00:08]} 79...
Rh3 {[%clk 0:00:11.8]} 80. Kxg6 {[%clk 0:00:07.8]} 80... Ka5 {[%clk 0:00:11.9]}
81. f5 {[%clk 0:00:08]} 81... Kb4 {[%clk 0:00:12.3]} 82. f6 {[%clk 0:00:08.7]}
82... Kxc4 {[%clk 0:00:12.8]} 83. f7 {[%clk 0:00:09.3]} 83... Rg3+ {[%clk
0:00:12.8]} 84. Kf6 {[%clk 0:00:09.7]} 84... Rf3+ {[%clk 0:00:12.8]} 85. Ke7
{[%clk 0:00:10.2]} 85... Kd3 {[%clk 0:00:12.3]} 86. Rxh2 {[%clk 0:00:10]} 86...
c4 {[%clk 0:00:12.2]} 87. Rh3 {[%clk 0:00:10.5]} 87... Rxh3 {[%clk 0:00:12]} 88.
f8=Q {[%clk 0:00:11]} 88... Re3+ {[%clk 0:00:12.9]} 89. Kd6 {[%clk 0:00:10.8]}
89... c3 {[%clk 0:00:13.8]} 90. Qf5+ {[%clk 0:00:11.2]} 90... Kd2 {[%clk
0:00:13.9]} 91. Qf2+ {[%clk 0:00:11]} 91... Kd3 {[%clk 0:00:08.3]} 92. Kd5
{[%clk 0:00:08.6]} 92... c2 {[%clk 0:00:07.8]} 93. Qf5+ {[%clk 0:00:09.2]} 93...
Kd2 {[%clk 0:00:08.1]} 94. Qf2+ {[%clk 0:00:08.5]} 94... Re2 {[%clk 0:00:08.2]}
95. Qd4+ {[%clk 0:00:08.5]} 95... Ke1 {[%clk 0:00:07.2]} 96. Qa1+ {[%clk
0:00:07.6]} 96... Kd2 {[%clk 0:00:07.2]} 97. Qa5+ {[%clk 0:00:07]} 97... Kd1
{[%clk 0:00:07.3]} 98. Qa4 {[%clk 0:00:07.5]} 98... Re3 {[%clk 0:00:05.6]} 99.
Kd4 {[%clk 0:00:07.3]} 99... Rf3 {[%clk 0:00:04.4]} 100. Ke4 {[%clk 0:00:05.5]}
100... Rf2 {[%clk 0:00:04]} 101. Ke3 {[%clk 0:00:04.2]} 101... Re2+ {[%clk
0:00:04.4]} 102. Kd3 {[%clk 0:00:04.9]} 102... Rd2+ {[%clk 0:00:04.8]} 103. Kc3
{[%clk 0:00:05.6]} 1-0